bitfinex/quotes_ETHUSD_20250420
["timestamp","ask_amount","ask_price","bid_price","bid_amount"]
[1745152625814,8.34700055,1575.4,1575.3,59.788]
[1745152627951,7.79700055,1575.4,1575.3,59.788]
[1745152628157,7.11446055,1575.4,1575.3,59.788]
[1745152628618,6.30176055,1575.4,1575.3,59.788]
[1745152628812,6.07,1575.4,1575.3,59.788]
[1745152629015,6.07,1575.4,1575.3,60.63102666]
[1745152630154,6.07,1575.4,1575.3,61.420949]
[1745152630457,6.07,1575.4,1575.3,67.5630439]
[1745152631718,6.07,1575.4,1575.3,66.77312156]
[1745152632456,6.07,1575.6,1575.3,66.77312156]
[1745152635068,6.8827,1575.7,1575.3,66.77312156]
[1745152635368,6.07,1575.7,1575.4,1.632949]
[1745152635866,6.07,1575.7,1575.4,7.98881387]
[1745152637533,6.07,1575.7,1575.5,5.438]
[1745152638373,6.8819,1575.9,1575.5,5.438]
[1745152638577,0.23588133,1575.6,1575.5,5.438]
[1745152638867,6.8819,1575.9,1575.5,5.438]
[1745152639073,7.04055964,1575.9,1575.5,5.438]
[1745152639248,0.23588133,1575.8,1575.5,5.438]
[1745152639647,7.04055964,1575.9,1575.5,5.438]
[1745152639849,7.7996156,1575.9,1575.5,5.438]
[1745152640079,0.23588133,1575.8,1575.5,5.438]
[1745152640485,0.8119,1575.7,1575.5,5.438]
[1745152641336,0.89122851,1575.8,1575.5,5.438]
[1745152641553,0.23588133,1575.6,1575.5,5.438]
[1745152641739,7.04055964,1575.9,1575.5,7.614749]
[1745152641979,0.23588133,1575.6,1575.5,7.614749]
[1745152642276,7.04055964,1575.9,1575.5,7.614749]
[1745152642675,0.23588133,1575.8,1575.5,7.614749]
[1745152642975,7.04055964,1575.9,1575.5,7.614749]
[1745152643157,0.23588133,1575.7,1575.6,0.7614749]
[1745152643468,7.04055964,1575.9,1575.6,0.7614749]
[1745152643843,0.23588133,1575.8,1575.6,0.7614749]
[1745152644236,7.04055964,1575.9,1575.6,0.7614749]
[1745152644674,0.24183192,1575.8,1575.6,0.7614749]
[1745152645057,7.04055964,1575.9,1575.6,0.7614749]
[1745152645370,0.24183192,1575.8,1575.6,0.7614749]
[1745152645575,7.04055964,1575.9,1575.6,0.7614749]
[1745152645795,0.24183192,1575.7,1575.6,0.7614749]
[1745152645999,7.04055964,1575.9,1575.6,0.7614749]
[1745152646201,0.24194634,1575.7,1575.6,0.7614749]
[1745152646402,7.04055964,1575.9,1575.6,0.7614749]
[1745152646915,0.24194634,1575.8,1575.6,0.7614749]
[1745152647099,7.04055964,1575.9,1575.6,0.7614749]
[1745152647277,7.04055964,1575.9,1575.7,54.34]
[1745152647479,0.24194634,1575.8,1575.7,54.34]
[1745152647704,7.04055964,1575.9,1575.7,54.34]
[1745152648094,0.24194634,1575.8,1575.7,54.34]
[1745152648281,7.04055964,1575.9,1575.7,59.85014749]
[1745152648481,0.24194634,1575.8,1575.7,59.85014749]
[1745152648681,7.04055964,1575.9,1575.7,59.85014749]
[1745152648877,0.24194634,1575.8,1575.7,59.85014749]
[1745152649206,7.04055964,1575.9,1575.7,59.85014749]
[1745152649379,0.24194634,1575.8,1575.7,59.85014749]
[1745152649896,7.04055964,1575.9,1575.7,59.85014749]
[1745152650306,0.24194634,1575.8,1575.7,59.85014749]
[1745152650609,7.04055964,1575.9,1575.7,59.85014749]
[1745152650795,0.24194634,1575.8,1575.7,59.85014749]
[1745152651113,7.04055964,1575.9,1575.7,59.85014749]
[1745152651472,0.24194634,1575.8,1575.7,59.85014749]
[1745152651811,7.04055964,1575.9,1575.7,59.85014749]
[1745152652008,7.04055964,1575.9,1575.8,11.42301475]
[1745152652307,6.47060598,1575.9,1575.8,11.42301475]
[1745152653306,6.47060598,1575.9,1575.8,5.438]
[1745152660474,6.22865964,1575.9,1575.8,5.438]
[1745152664725,0.15865964,1575.9,1575.8,5.438]
[1745152666823,0.15865964,1575.9,1575.8,6.28102666]
[1745152668894,0.15865964,1575.9,1575.8,7.070949]
[1745152669222,0.15865964,1576.2,1575.8,13.2120439]
[1745152669382,0.15865964,1576.2,1575.9,1.632949]
[1745152670016,0.22272806,1576.1,1575.9,1.632949]
[1745152670182,0.15865964,1576.2,1575.9,1.632949]
[1745152670378,0.23370793,1576.0,1575.9,1.632949]
[1745152670584,0.15865964,1576.2,1575.9,2.38856722]
[1745152670818,0.23370793,1576.0,1575.9,2.38856722]
[1745152671123,0.15865964,1576.2,1575.9,2.38856722]
[1745152671124,0.15865964,1576.2,1575.9,1.632949]
[1745152671291,0.23370793,1576.0,1575.9,1.632949]
[1745152671495,0.23439394,1576.0,1575.9,1.632949]
[1745152671699,0.23439394,1576.0,1575.9,1.95454455]
[1745152671943,0.23450827,1576.0,1575.9,1.632949]
[1745152672100,1.207906,1576.3,1575.8,0.48523319]
[1745152672300,1.207906,1576.3,1575.7,0.84302666]
[1745152672585,0.23450827,1576.2,1575.7,0.84302666]
[1745152673311,1.04900827,1576.2,1575.7,1.61972737]
[1745152673499,1.04900827,1576.2,1575.7,0.84302666]
[1745152675413,1.04900827,1576.2,1575.8,59.755]
[1745152675714,0.8145,1576.2,1575.8,65.81480267]
[1745152675914,1.152706,1576.3,1575.8,65.81480267]
[1745152677430,0.393406,1576.3,1575.8,66.65782933]
[1745152678231,0.393406,1576.3,1575.8,67.14061425]
[1745152681231,0.393406,1576.3,1575.9,0.84302666]
[1745152681390,0.393406,1576.3,1575.9,1.61972737]
[1745152681590,0.393406,1576.3,1575.9,0.84302666]
[1745152683525,0.393406,1576.3,1575.9,6.35586487]
[1745152683858,1.170106,1576.3,1576.0,5.433]
[1745152684544,0.22995478,1576.2,1576.0,5.433]
[1745152684744,1.170106,1576.3,1576.0,5.433]
[1745152684943,0.22995478,1576.2,1576.0,5.433]
[1745152685143,1.170106,1576.3,1575.8,54.321]
[1745152685456,0.22995478,1576.2,1576.1,5.433]
[1745152685759,7.240106,1576.3,1576.1,5.433]
[1745152685964,0.22995478,1576.2,1576.1,5.433]
[1745152686321,7.240106,1576.3,1576.1,5.433]
[1745152686521,0.22995478,1576.2,1576.1,5.433]
[1745152686738,7.240106,1576.3,1576.1,5.433]
[1745152687000,0.22995478,1576.2,1576.1,5.433]
[1745152687347,7.240106,1576.3,1576.1,5.433]
[1745152687735,6.463406,1576.3,1576.1,5.433]
[1745152687930,6.463406,1576.3,1576.1,5.9763]
[1745152688938,6.463406,1576.3,1576.1,6.81932666]
[1745152689861,6.463406,1576.3,1576.2,5.433]
[1745152690063,0.393406,1576.3,1576.2,5.433]
[1745152690359,0.393406,1576.3,1576.2,6.09916627]
[1745152690565,0.393406,1576.3,1576.2,6.94219293]
[1745152692033,0.393406,1576.3,1576.2,6.09916627]
[1745152695371,0.393406,1576.3,1576.2,7.93332246]
[1745152696033,0.393406,1576.3,1576.2,7.0117616]
[1745152697471,0.393406,1576.3,1576.2,61.3227616]
[1745152698634,0.393406,1576.3,1576.2,62.24432246]
[1745152700862,0.393406,1576.3,1576.2,61.3227616]
[1745152701170,0.393406,1576.3,1576.2,55.22359533]
[1745152701369,0.393406,1576.3,1576.2,60.65359533]
[1745152711283,7.35250483,1576.3,1576.2,59.741]
[1745152711488,7.273206,1576.3,1576.2,59.741]
[1745152711691,7.50521924,1576.3,1576.2,59.741]
[1745152711877,8.04165781,1576.3,1576.2,59.741]
[1745152712885,8.27367105,1576.3,1576.2,59.741]
[1745152717360,8.82367105,1576.3,1576.2,54.311]
[1745152717566,8.82367105,1576.3,1576.2,59.742]
[1745152722692,7.50521924,1576.3,1576.2,59.742]
[1745152723020,6.69541924,1576.3,1576.2,61.6373342]
[1745152723427,6.463406,1576.3,1576.2,60.71577334]
[1745152724543,7.250406,1576.3,1576.2,59.742]
[1745152725499,7.46237263,1576.3,1576.2,59.742]
[1745152725925,8.21860989,1576.3,1576.2,59.742]
[1745152732610,8.21860989,1576.3,1576.2,59.74]
[1745152732611,8.79500989,1576.3,1576.2,59.74]
[1745152742439,8.79500989,1576.3,1576.2,54.311]
[1745152742640,8.79500989,1576.3,1576.2,59.741]
[1745152751362,9.62,1576.2,1575.8,0.97377334]
[1745152751562,1.32,1576.0,1575.9,59.757]
[1745152751747,4.32,1576.0,1575.9,59.757]
[1745152752153,4.52864647,1576.0,1575.9,59.757]
[1745152752651,3.75864647,1576.0,1575.9,59.757]
[1745152753464,4.23661395,1576.0,1575.9,59.757]
[1745152753666,4.76440834,1576.0,1575.9,59.757]
[1745152754663,5.53440834,1576.0,1575.9,59.757]
[1745152755730,11.60440834,1576.0,1575.9,59.757]
[1745152757144,11.68373354,1576.0,1575.9,59.757]
[1745152757855,11.68373165,1576.0,1575.9,59.757]
[1745152758370,10.43576417,1576.0,1575.9,59.757]
[1745152758679,9.90796978,1576.0,1575.9,59.757]
[1745152759980,9.74476978,1576.0,1575.9,59.757]
[1745152760278,10.9776118,1576.0,1575.9,59.757]
[1745152760689,10.9776118,1576.0,1575.9,54.327]
[1745152760869,10.9776118,1576.0,1575.9,54.333]
[1745152761072,13.47265611,1576.0,1575.9,59.761]
[1745152761379,0.7684,1575.6,1575.4,0.97377334]
[1745152761547,6.14934945,1575.5,1575.4,0.97377334]
[1745152761739,6.3542171,1575.5,1575.4,0.97377334]
[1745152764458,6.3542171,1575.5,1575.1,0.97377334]
[1745152765486,6.3542171,1575.5,1575.2,59.77]
[1745152765640,6.3542171,1575.5,1575.2,60.74377334]
[1745152766495,6.62,1575.4,1575.2,60.74377334]
[1745152766707,6.69935531,1575.4,1575.2,59.77]
[1745152766875,0.19936892,1575.3,1575.2,59.77]
[1745152767057,0.19936892,1575.3,1575.2,54.341]
[1745152767263,7.51845531,1575.4,1575.2,59.77]
[1745152767683,0.19936892,1575.3,1575.2,59.77]
[1745152769406,7.59115134,1575.3,1575.2,54.341]
[1745152769561,7.59115134,1575.3,1575.2,59.77]
[1745152769761,8.41025134,1575.3,1575.2,59.77]
[1745152772192,11.41025134,1575.3,1575.2,59.77]
[1745152773479,0.55,1575.0,1573.5,0.2]
[1745152773676,6.1493809,1574.9,1574.5,0.97377334]
[1745152773910,6.1493809,1574.9,1574.6,5.43]
[1745152773911,6.33660323,1574.9,1574.6,5.43]
[1745152774103,6.33660323,1574.9,1574.6,6.40377334]
[1745152774307,6.33660323,1574.9,1574.7,0.97377334]
[1745152776004,6.25722233,1574.9,1574.7,0.97377334]
[1745152776381,6.07,1574.9,1574.7,0.97377334]
[1745152777399,0.18607569,1574.8,1574.7,0.97377334]
[1745152777803,6.07,1574.9,1574.7,0.97377334]
[1745152778005,6.07,1574.9,1574.7,1.7795601]
[1745152778170,0.18664903,1574.8,1574.7,1.7795601]
[1745152778507,6.07,1574.9,1574.7,1.7795601]
[1745152778712,6.07,1574.9,1574.7,0.97377334]
[1745152779012,0.18664903,1574.8,1574.6,6.35156086]
[1745152779167,0.18664903,1574.8,1574.7,5.431]
[1745152779374,0.07937214,1574.9,1574.7,5.431]
[1745152779568,0.18653437,1574.8,1574.7,6.40477334]
[1745152779870,0.07937425,1575.0,1574.7,7.04525067]
[1745152780113,6.14937071,1575.1,1574.7,7.04525067]
[1745152780493,0.18217812,1575.0,1574.7,7.04525067]
[1745152781002,0.18217812,1574.9,1574.7,7.04525067]
[1745152781197,6.14937071,1575.1,1574.7,7.04525067]
[1745152781419,0.18217812,1575.0,1574.7,7.04525067]
[1745152783218,0.18217812,1575.0,1574.7,6.07147733]
[1745152783429,0.18217812,1575.0,1574.7,7.04525067]
[1745152785028,6.14937071,1575.1,1574.7,7.04525067]
[1745152785326,0.18229278,1575.0,1574.7,7.04525067]
[1745152785731,6.14937071,1575.1,1574.7,7.04525067]
[1745152786035,0.18229278,1575.0,1574.7,7.04525067]
[1745152786329,6.14937071,1575.1,1574.7,7.04525067]
[1745152786690,0.18229278,1575.0,1574.7,7.04525067]
[1745152787124,6.14937071,1575.1,1574.7,7.04525067]
[1745152787325,6.94126367,1575.1,1574.7,6.40477334]
[1745152787526,0.98799278,1575.0,1574.7,5.431]
[1745152787730,0.07937713,1574.9,1574.7,5.431]
[1745152788096,0.18229278,1574.8,1574.7,5.431]
[1745152788297,0.07937713,1574.9,1574.7,5.431]
[1745152788520,0.07937713,1574.9,1574.7,59.798]
[1745152788843,0.18229278,1574.8,1574.7,59.798]
[1745152789021,0.07937713,1574.9,1574.7,59.798]
[1745152789213,0.18229278,1574.8,1574.7,59.798]
[1745152789423,0.07937713,1574.9,1574.7,59.798]
[1745152789733,0.18229278,1574.8,1574.7,59.798]
[1745152789902,0.07938025,1575.0,1574.7,59.798]
[1745152790234,0.18229278,1574.9,1574.7,59.798]
[1745152790531,3.85407757,1575.0,1574.7,59.798]
[1745152790910,0.18229278,1574.9,1574.7,59.798]
[1745152792400,0.96809278,1574.9,1574.7,59.798]
[1745152792601,0.18229278,1574.9,1574.7,59.798]
[1745152796459,1.307,1574.8,1574.7,59.798]
[1745152796615,1.48860478,1574.8,1574.7,59.798]
[1745152796822,7.55860478,1574.8,1574.7,59.798]
[1745152802958,10.63798759,1574.8,1574.7,59.797]
[1745152807646,1.3146,1574.6,1574.0,5.0]
[1745152807971,0.55,1574.4,1574.1,59.806]
[1745152808372,0.17472297,1574.3,1574.1,59.806]
[1745152808577,0.17472297,1574.3,1574.1,60.71735667]
[1745152808940,0.0794073,1574.3,1574.1,60.71735667]
[1745152809142,0.17472297,1574.2,1574.1,60.71735667]
[1745152809344,0.62940727,1574.4,1574.1,60.71735667]
[1745152809852,0.17472297,1574.3,1574.1,60.71735667]
[1745152813583,6.07,1574.2,1574.1,55.28735667]
[1745152813883,6.07,1574.2,1574.1,60.71835667]
[1745152814277,6.24178293,1574.2,1574.1,60.71835667]
[1745152814485,6.24178293,1574.2,1574.1,59.807]
[1745152815385,6.07,1574.2,1574.1,59.807]
[1745152815978,6.24178293,1574.2,1574.1,59.807]
[1745152818384,6.24178293,1574.2,1574.1,67.9367824]
[1745152818805,6.07,1574.2,1574.1,67.9367824]
[1745152819387,6.07,1574.2,1574.1,67.07422154]
[1745152823299,6.07,1574.5,1574.1,67.07422154]
[1745152823504,0.15138716,1574.2,1574.1,67.07422154]
[1745152823966,6.07,1574.5,1574.1,66.16286487]
[1745152824161,0.15138716,1574.2,1574.1,59.807]
[1745152824469,6.07,1574.5,1574.1,59.807]
[1745152827310,0.2128,1574.2,1574.1,59.807]
[1745152828407,0.2128,1574.2,1574.1,60.71835667]
[1745152828702,0.2128,1574.2,1574.1,61.58091753]
[1745152828907,0.2128,1574.2,1574.1,67.9367824]
[1745152830298,0.2128,1574.2,1574.1,13.5607824]
[1745152830487,6.07,1574.5,1574.2,0.91135667]
[1745152832009,0.8686047,1574.9,1574.2,3.91135667]
[1745152832010,6.07,1574.8,1574.2,3.91135667]
[1745152832587,6.8322,1574.8,1574.2,3.91135667]
[1745152835423,6.8322,1574.8,1574.3,54.38]
[1745152837435,6.8322,1574.8,1574.4,5.429]
[1745152837638,6.8322,1574.8,1574.4,11.4099]
[1745152838930,6.07,1574.8,1574.4,11.4099]
[1745152840302,0.28868235,1574.7,1574.4,11.4099]
[1745152840728,6.07,1574.8,1574.4,11.4099]
[1745152843805,6.07,1574.9,1574.4,11.4099]
[1745152844136,6.76115825,1574.9,1574.4,11.4099]
[1745152844338,0.28868235,1574.8,1574.4,11.4099]
[1745152844527,6.8405408,1574.9,1574.4,11.4099]
[1745152844836,0.28868235,1574.7,1574.4,11.4099]
[1745152845036,6.8405408,1574.9,1574.4,11.4099]
[1745152845037,6.14938255,1574.9,1574.4,11.4099]
[1745152845239,6.84054081,1574.9,1574.4,11.4099]
[1745152845401,1.06938235,1574.8,1574.4,11.4099]
[1745152845599,0.86008313,1574.8,1574.4,11.4099]
[1745152847143,0.28868235,1574.7,1574.5,54.375]
[1745152847312,0.86008313,1574.8,1574.5,54.375]
[1745152847510,6.76115826,1574.9,1574.5,54.375]
[1745152847809,6.84054115,1574.9,1574.5,54.375]
[1745152848009,0.28879705,1574.8,1574.5,54.375]
[1745152848339,0.28879705,1574.7,1574.5,54.375]
[1745152848541,6.14938289,1574.9,1574.5,60.3554]
[1745152848747,0.28879705,1574.6,1574.5,54.375]
[1745152848907,0.07937843,1574.8,1574.5,54.375]
[1745152849107,0.28879705,1574.7,1574.5,54.375]
[1745152849753,6.35879705,1574.7,1574.5,54.375]
[1745152851752,6.35879705,1574.7,1574.6,5.426]
[1745152860447,6.35879705,1574.7,1574.6,6.33735667]
[1745152860648,6.07,1574.7,1574.6,12.49484842]
[1745152861473,6.07,1574.9,1574.6,66.86884842]
[1745152861835,0.2889118,1574.8,1574.6,66.86884842]
[1745152862176,6.07,1574.9,1574.6,66.86884842]
[1745152862342,0.2889118,1574.7,1574.6,66.86884842]
[1745152862763,6.07,1574.9,1574.6,66.86884842]
[1745152863074,0.2889118,1574.7,1574.6,65.95749175]
[1745152863280,6.07,1574.9,1574.6,65.95749175]
[1745152863481,0.83017634,1574.8,1574.6,59.8]
[1745152863784,1.11966159,1574.8,1574.6,59.8]
[1745152866182,1.11966159,1574.8,1574.6,54.374]
[1745152866395,0.55,1574.7,1574.6,54.374]
[1745152866603,0.55,1574.7,1574.6,59.8]
[1745152867082,0.83948525,1574.7,1574.6,54.374]
[1745152867388,7.72738525,1574.7,1574.6,59.8]
[1745152867584,8.50806141,1574.7,1574.6,59.8]
[1745152870381,0.55,1574.3,1573.9,0.91135667]
[1745152870684,6.07,1574.2,1574.0,59.803]
[1745152870890,6.35225821,1574.2,1574.0,59.803]
[1745152871059,6.07,1574.2,1574.0,59.803]
[1745152872886,6.07,1574.2,1574.0,66.78579234]
[1745152874489,6.07,1574.2,1574.0,60.71435667]
[1745152885599,0.27720821,1574.1,1574.0,60.71435667]
[1745152885796,6.07,1574.2,1574.0,60.71435667]
[1745152886001,0.27606079,1574.1,1574.0,60.71435667]
[1745152886203,6.07,1574.2,1574.0,60.71435667]
[1745152886405,0.27606079,1574.1,1574.0,60.71435667]
[1745152886711,6.07,1574.2,1574.0,60.71435667]
[1745152887170,0.27606079,1574.1,1574.0,60.71435667]
[1745152887370,6.07,1574.2,1574.0,60.71435667]
[1745152887675,0.27606079,1574.1,1574.0,60.71435667]
[1745152888206,6.07,1574.2,1574.0,60.71435667]
[1745152888392,0.27606079,1574.1,1574.0,60.71435667]
[1745152888701,6.07,1574.2,1574.0,60.71435667]
[1745152888999,0.27606079,1574.1,1574.0,60.71435667]
[1745152889206,6.07,1574.2,1574.0,60.71435667]
[1745152889582,0.27606079,1574.1,1574.0,60.71435667]
[1745152889783,6.07,1574.2,1574.0,60.71435667]
[1745152890186,0.27606079,1574.1,1574.0,60.71435667]
[1745152890484,6.07,1574.2,1574.0,60.71435667]
[1745152890897,0.27606079,1574.1,1574.0,60.71435667]
[1745152891305,6.07,1574.2,1574.0,60.71435667]
[1745152891606,0.27606079,1574.1,1574.0,60.71435667]
[1745152891804,6.07,1574.2,1574.0,60.71435667]
[1745152892175,0.27606079,1574.1,1574.0,60.71435667]
[1745152892375,6.07,1574.2,1574.0,60.71435667]
[1745152892606,0.27606079,1574.1,1574.0,60.71435667]
[1745152892804,6.07,1574.2,1574.0,60.71435667]
[1745152893172,0.27606079,1574.1,1574.0,60.71435667]
[1745152893400,6.07,1574.2,1574.0,60.71435667]
[1745152893712,6.07,1574.2,1574.1,0.91135667]
[1745152894875,6.07,1574.2,1574.1,6.33735667]
[1745152895514,6.07,1574.2,1574.1,5.426]
[1745152896008,6.8613,1574.2,1574.1,5.426]
[1745152896177,7.4113,1574.2,1574.0,54.4256]
[1745152896378,0.74113,1574.1,1574.0,54.4256]
[1745152896707,7.4113,1574.2,1574.0,59.8516]
[1745152897011,6.8613,1574.2,1574.0,60.76295667]
[1745152902121,0.27115504,1574.1,1574.0,60.76295667]
[1745152902423,6.8613,1574.2,1574.0,60.76295667]
[1745152902584,0.27023004,1574.1,1574.0,60.76295667]
[1745152902785,6.8613,1574.2,1574.0,60.76295667]
[1745152902986,0.27023004,1574.1,1574.0,60.76295667]
[1745152903319,6.8613,1574.2,1574.0,60.76295667]
[1745152903527,0.27023004,1574.1,1574.0,60.76295667]
[1745152903819,6.8613,1574.2,1574.0,60.76295667]
[1745152904020,0.27023004,1574.1,1574.0,60.76295667]
[1745152904193,6.8613,1574.2,1574.0,60.76295667]
[1745152904519,0.27023004,1574.1,1574.0,60.76295667]
[1745152904886,6.8613,1574.2,1574.0,60.76295667]
[1745152905087,0.27023004,1574.1,1574.0,60.76295667]
[1745152905320,6.07,1574.1,1574.0,60.76295667]
[1745152905519,6.34023004,1574.1,1574.0,60.76295667]
[1745152915217,6.89023004,1574.1,1574.0,55.33695667]
[1745152915418,8.37115304,1574.1,1574.0,60.75995667]
[1745152915627,7.13213004,1574.1,1574.0,60.75995667]
[1745152915927,6.34023004,1574.1,1574.0,60.75995667]
[1745152916125,6.34023004,1574.1,1574.0,59.8486]
[1745152916941,6.34023004,1574.1,1574.0,60.75995667]
[1745152919032,6.07,1574.1,1574.0,60.75995667]
[1745152920240,6.33654796,1574.1,1574.0,60.75995667]
[1745152928450,6.07,1574.1,1574.0,60.75995667]
[1745152928851,0.8125,1574.4,1574.0,62.11596465]
[1745152928852,6.07,1574.3,1574.0,62.11596465]
[1745152929257,0.26654796,1574.2,1574.0,62.11596465]
[1745152929958,0.26654796,1574.2,1574.1,0.91135667]
[1745152930127,0.26654796,1574.2,1574.1,1.77391753]
[1745152930331,6.07,1574.5,1574.1,1.77391753]
[1745152930921,0.22377734,1574.4,1574.1,1.77391753]
[1745152932361,0.22377734,1574.4,1574.1,4.77391753]
[1745152932528,0.22377734,1574.4,1574.2,0.47739175]
[1745152933056,6.07,1574.5,1574.2,1.38874842]
[1745152934057,6.07,1574.5,1574.2,4.38874842]
[1745152934258,6.07,1574.5,1574.3,0.91135667]
[1745152934463,6.07,1574.7,1574.4,5.423]
[1745152934956,0.22687514,1574.6,1574.4,5.423]
[1745152935348,6.07,1574.7,1574.4,5.423]
[1745152935748,0.97928986,1574.6,1574.4,5.423]
[1745152936069,0.7523,1574.6,1574.4,5.423]
[1745152936454,0.22698986,1574.5,1574.4,5.423]
[1745152936667,0.7523,1574.6,1574.4,5.9653]
[1745152937572,6.8223,1574.6,1574.4,5.9653]
[1745152937975,6.8223,1574.6,1574.5,54.385]
[1745152938942,7.3723,1574.6,1574.5,54.385]
[1745152939143,10.3723,1574.6,1574.5,59.807]
[1745152939349,11.6444587,1574.6,1574.5,59.807]
[1745152946366,6.07,1574.5,1574.0,5.0496]
[1745152946533,6.07,1574.5,1574.1,59.807]
[1745152946534,1.3756,1574.3,1574.1,59.807]
[1745152946874,0.85433749,1574.2,1574.1,59.807]
[1745152947232,1.67993749,1574.2,1574.1,59.807]
[1745152949665,0.30433749,1574.2,1574.1,59.807]
[1745152949871,0.22492474,1574.2,1574.1,60.71835667]
[1745152950089,0.62941423,1574.3,1574.1,59.807]
[1745152950287,0.22446569,1574.2,1574.1,59.807]
[1745152950671,1.59286569,1574.2,1574.1,59.807]
[1745152952291,7.66286569,1574.2,1574.1,59.807]
[1745152952455,8.42915226,1574.2,1574.1,59.807]
[1745152958268,7.61075226,1574.2,1574.1,59.807]
[1745152958476,8.42915226,1574.2,1574.1,59.807]
[1745152961502,11.42915226,1574.2,1574.1,59.807]
[1745152964309,11.50857172,1574.2,1574.1,59.807]
[1745152964672,11.50857172,1574.2,1573.1,0.41063618]
[1745152964673,0.55,1573.9,1573.1,0.1]
[1745152964897,1.3687,1573.7,1573.2,0.86256086]
[1745152965324,0.2127577,1573.6,1573.2,0.86256086]
[1745152965525,0.2127577,1573.6,1573.3,59.825]
[1745152966033,1.3687,1573.7,1573.3,59.825]
[1745152966328,0.2127577,1573.6,1573.3,59.825]
[1745152966832,1.3687,1573.7,1573.3,59.825]
[1745152967046,0.2127577,1573.6,1573.3,60.79134167]
[1745152967622,0.55,1573.7,1573.3,60.79134167]
[1745152967798,0.2127577,1573.6,1573.3,60.79134167]
[1745152968198,0.55,1573.7,1573.3,60.79134167]
[1745152968398,0.2127577,1573.6,1573.3,60.79134167]
[1745152968599,0.55,1573.7,1573.3,60.79134167]
[1745152968828,0.2127577,1573.6,1573.3,60.79134167]
[1745152969131,0.55,1573.7,1573.3,60.79134167]
[1745152969517,0.2127577,1573.6,1573.3,60.79134167]
[1745152969921,0.55,1573.7,1573.3,60.79134167]
[1745152970336,0.2127577,1573.6,1573.3,60.79134167]
[1745152970743,0.55,1573.7,1573.3,60.79134167]
[1745152971031,0.55,1573.5,1573.4,5.422]
[1745152971206,6.78109065,1573.5,1573.4,5.422]
[1745152971599,6.23109065,1573.5,1573.4,5.422]
[1745152971832,6.0204,1573.5,1573.4,5.422]
[1745152972498,6.70396,1573.5,1573.4,5.422]
[1745152972698,6.91465065,1573.5,1573.4,5.422]
[1745152974632,7.46465065,1573.5,1573.4,5.422]
[1745152975039,8.27985065,1573.5,1573.4,5.422]
[1745152977510,7.46465065,1573.5,1573.4,5.422]
[1745152978236,8.29645065,1573.5,1573.4,5.422]
[1745152980150,7.46465065,1573.5,1573.4,5.422]
[1745152981555,7.54409954,1573.5,1573.4,5.422]
[1745152981746,7.46465065,1573.5,1573.4,5.422]
[1745152984137,8.26495065,1573.5,1573.4,5.422]
[1745152985262,6.23109065,1573.5,1573.4,5.422]
[1745152985623,6.0204,1573.5,1573.4,5.422]
[1745152989453,6.09983332,1574.0,1573.4,7.13750087]
[1745152989775,0.20770482,1573.9,1573.4,7.13750087]
[1745152990860,0.20770482,1573.9,1573.4,6.75996966]
[1745152991194,0.20770482,1573.9,1573.5,0.67599697]
[1745152991755,6.0204,1574.0,1573.5,0.67599697]
[1745152992098,6.0204,1574.0,1573.5,3.67599697]
[1745152993184,6.0204,1574.0,1573.5,4.52893698]
[1745152994998,6.0204,1574.0,1573.5,5.39149784]
[1745152995203,6.0204,1574.0,1573.6,0.53914978]
[1745152996101,6.0204,1574.0,1573.6,1.39208979]
[1745152997396,6.0204,1574.0,1573.6,0.53914978]
[1745153004998,6.0204,1574.2,1573.6,0.53914978]
[1745153006435,6.0204,1574.2,1573.7,54.4]
[1745153006742,0.20095966,1574.1,1573.8,5.416]
[1745153007037,6.0204,1574.2,1573.8,5.416]
[1745153007333,0.20107444,1574.1,1573.8,5.416]
[1745153007635,6.0204,1574.2,1573.8,5.416]
[1745153008037,0.20118923,1574.1,1573.8,5.416]
[1745153008349,6.0204,1574.2,1573.8,5.416]
[1745153008507,6.70547,1574.2,1573.8,5.416]
[1745153008827,0.20118923,1574.1,1573.8,5.416]
[1745153009136,6.70547,1574.2,1573.8,5.416]
[1745153009535,0.20118923,1574.1,1573.8,5.416]
[1745153009738,6.70547,1574.2,1573.8,5.416]
[1745153010137,0.20118923,1574.1,1573.8,5.416]
[1745153010313,6.70547,1574.2,1573.8,5.416]
[1745153010715,0.87173623,1574.1,1573.8,5.416]
[1745153010918,0.55,1574.0,1573.8,5.416]
[1745153011940,0.20118923,1573.9,1573.8,5.416]
[1745153014042,0.96608923,1573.9,1573.8,5.416]
[1745153014745,1.51608923,1573.9,1573.8,5.416]
[1745153014919,0.75118923,1573.9,1573.8,5.416]
[1745153015406,0.55,1574.0,1573.8,5.416]
[1745153015607,1.35852582,1574.0,1573.8,5.416]
[1745153016248,0.20084481,1573.9,1573.8,5.416]
[1745153021856,0.80852582,1574.0,1573.8,5.416]
[1745153022658,0.19992648,1573.9,1573.8,5.416]
[1745153026759,0.82935006,1573.9,1573.8,5.416]
[1745153026962,0.74992648,1573.9,1573.8,5.416]
[1745153041380,0.74992648,1573.9,1573.8,59.822]
[1745153044392,1.54302648,1573.9,1573.8,54.406]
[1745153044543,1.54302648,1573.9,1573.8,59.82]
[1745153049080,7.56342648,1573.9,1573.8,59.82]
[1745153049287,6.77032648,1573.9,1573.8,59.82]
[1745153050593,6.22032648,1573.9,1573.8,59.82]
[1745153061099,7.39235913,1573.9,1573.8,59.82]
[1745153061281,8.17755913,1573.9,1573.8,59.82]
[1745153065406,6.22032648,1573.9,1573.8,59.82]
[1745153068184,0.19992648,1573.9,1573.8,59.82]
[1745153068382,6.09981942,1574.4,1573.8,64.53550087]
[1745153068612,6.0204,1574.4,1573.9,4.71550087]
[1745153068919,6.0204,1574.4,1574.0,0.47155009]
[1745153069212,6.0204,1574.4,1574.0,1.3244901]
[1745153071180,6.0204,1574.4,1574.0,1.80746806]